Cogmind - Beta 10.1 @@@ ROGUE MODE // 2020.09.27 @ 22:18:06 Player: Tmvn Result: Destroyed by G-34 Mercenary with Small Laser Performance ------------- Evolutions (0) 0 Regions Visited (1) 200 Robots Destroyed (7) 35 Value Destroyed (85) 85 Prototype IDs (0) 0 Alien Tech Used (0) 0 Bonus (0) 0 TOTAL SCORE: 320 Bonus ------- None Cogmind --------- Core Integrity 0/250 Matter 262/300 Energy 238/250 System Corruption 0% Temperature Cool (6) Movement Walking (150) Ox1 Location -10/Materials Parts ------- > --- POWER (1) -------- Ion Engine > --- PROPULSION (2) --- Aluminum Leg Aluminum Leg > --- UTILITY (2) ------ Small Storage Unit Medium Storage Unit > --- WEAPON (2) ------- Mace Mace > --- INVENTORY (10) --- Wheel Small Laser Small Laser Assault Rifle Peak State ------------ > --- POWER ------------ Ion Engine > --- PROPULSION ------- Wheel Wheel > --- UTILITY ---------- Small Storage Unit Medium Storage Unit > --- WEAPON ----------- Mace Mace > --- INVENTORY -------- Ion Engine Aluminum Leg Aluminum Leg Wheel Small Laser Small Laser Assault Rifle [Rating: 9] Favorites ----------- Power Ion Engine Engine Ion Engine Propulsion Wheel Leg Aluminum Leg Wheel Wheel Utility Small Storage Unit Storage Small Storage Unit Weapon Assault Rifle Energy Gun Small Laser Ballistic Gun Assault Rifle Impact Weapon Mace Build | -11 -10 ------- Run | Scr Mat Slots Evolved . | . . Power . | . . Propulsion . | . . Utility . | . . Weapon . | . . Parts Attached 8 | 2 6 Power 1 | . 1 Engine 1 | . 1 Core . | . . Reactor . | . . Propulsion 4 | 2 2 Treads . | . . Leg 2 | . 2 Wheel 2 | 2 . Hover . | . . Flight . | . . Utility 1 | . 1 Device . | . . Storage 1 | . 1 Processor . | . . Hackware . | . . Protection . | . . Artifact . | . . Weapon 2 | . 2 Energy Gun . | . . Energy Cannon . | . . Ballistic Gun . | . . Ballistic Cannon . | . . Launcher . | . . Special Weapon . | . . Impact Weapon 2 | . 2 Slashing Weapon . | . . Piercing Weapon . | . . Special Melee Weapon . | . . Unidentified Prototypes . | . . Parts Lost 3 | . 3 Power 1 | . 1 Propulsion 2 | . 2 Utility . | . . Weapon . | . . Highest Loss Streak 3 | . 3 Average Slot Usage (%) 94 | . 94 Engine 13 | . 13 Leg 3 | . 3 Wheel 23 | . 23 Storage 24 | . 24 Energy Gun 10 | . 10 Ballistic Gun 10 | . 10 Impact Weapon 6 | . 6 Naked Turns . | . . Heaviest Build 21 | 12 21 Greatest Support 20 | 20 20 Greatest Overweight (x) 1 | . 1 Average Overweight (x) . | . . Largest Inventory Capacity 10 | 6 10 Average Capacity 8 | 6 8 Most Carried 7 | 6 7 Average Carried 4 | 5 4 Final Capacity 10 | 6 10 Final Carried 4 | 4 4 Class Distribution -------------------- 100% | Mutant Dominant Class ---------------- Mutant | -10/Materials Resources | -11 -10 ----------- Run | Scr Mat Matter Collected 269 | 220 49 Remotely . | . . Salvage Created 142 | . 142 Parts 7 | . 7 Haulers Intercepted . | . . Recyclers Shooed . | . . Parts Field Recycled . | . . Retrieved Matter . | . . Parts Self-Destructed . | . . Prevented . | . . Kills | -11 -10 ------- Run | Scr Mat Combat Hostiles Destroyed 6 | . 6 Melee 2 | . 2 Guns 3 | . 3 Classes Destroyed 3 | . 3 Worker 1 | . 1 Swarmer 5 | . 5 Grunt 1 | . 1 Best Kill Streak 3 | . 3 Combat Bots Only 3 | . 3 Max Kills in Single Turn 1 | . 1 Gunslinging . | . . Exploded . | . . Melee 1 | . 1 Uniques/NPCs Destroyed . | . . Combat | -11 -10 -------- Run | Scr Mat Damage Taken 901 | . 901 Core 252 | . 252 Absorbed by Shields . | . . Core Remaining (%) 100 | 100 . Volleys Fired 14 | . 14 Largest 2 | . 2 Hottest 60 | . 60 Shots Fired 28 | . 28 Gun 28 | . 28 Cannon . | . . Launcher . | . . Special . | . . Kinetic 14 | . 14 Thermal 14 | . 14 Explosive . | . . Electromagnetic . | . . Robot Hit Streak 6 | . 6 Robot Miss Streak 3 | . 3 Penetration Max . | . . Secondary Targets . | . . Shots Hit Robots 22 | . 22 Core Hits 6 | . 6 Critical Hits . | . . Critical Kills . | . . Critical Parts Destroyed . | . . Melee Attacks 16 | . 16 Impact 16 | . 16 Slashing . | . . Piercing . | . . Sneak Attacks . | . . Combat Hostiles . | . . Follow-up Attacks 4 | . 4 Damage Inflicted 381 | . 381 Guns 157 | . 157 Cannons . | . . Explosions . | . . Melee 224 | . 224 Ramming . | . . Kinetic 71 | . 71 Thermal 86 | . 86 Explosive . | . . Electromagnetic . | . . Impact 224 | . 224 Slashing . | . . Piercing . | . . Highest Corruption . | . . Average Corruption . | . . Corruption Purged . | . . Overload Shots . | . . Overflow Damage 39 | . 39 Projectiles . | . . Explosions . | . . Melee 39 | . 39 Knockbacks . | . . Impact . | . . Kinetic . | . . Secondary . | . . Self-Inflicted Damage . | . . Shots . | . . Rammed . | . . Targets Rammed . | . . Kicked . | . . Crushed . | . . Highest Temperature . | . . Average Temperature . | . . Received Heat Transfer 246 | . 246 Siege Activations . | . . Robots Corrupted . | . . Combat Hostiles . | . . Parts Fried 1 | . 1 Impact Corruptions 2 | . 2 Robots Melted . | . . Combat Hostiles . | . . Parts Melted . | . . Heat Transferred 200 | . 200 Parts Sabotaged . | . . Parts Stolen . | . . Parts Stripped . | . . Power Chain Reactions . | . . Missiles Intercepted . | . . Alert | -11 -10 ------- Run | Scr Mat Peak Influence 95 | . 95 Initial . | . . Average 42 | . 44 Maximum Alert Level . | . . Low Security (%) 100 | 100 100 Level 1 . | . . Level 2 . | . . Level 3 . | . . Level 4 . | . . Level 5 . | . . High Security . | . . Max Security . | . . Squads Dispatched 1 | . 1 Investigation 1 | . 1 Extermination . | . . Reinforcement . | . . Assault . | . . Garrison . | . . Intercept . | . . Construction Impeded . | . . Haulers Reinforced . | . . Stealth | -11 -10 --------- Run | Scr Mat Distress Signals . | . . Communications Jammed . | . . Distress Signals . | . . Times Spotted 9 | . 9 Peak Tracking Total 6 | . 6 Tactical Retreats . | . . Traps | -11 -10 ------- Run | Scr Mat Traps Triggered 1 | . 1 Indirectly . | . . Trap Hack Attempts . | . . Triggered . | . . Disarmed . | . . Reprogrammed . | . . Reused . | . . Traps Extracted . | . . Installed . | . . Triggered . | . . Machines | -11 -10 ---------- Run | Scr Mat Machines Disabled . | . . Max in Single Turn . | . . Machines Sabotaged . | . . Garrisons Compromised . | . . Overloaded Fab Kills . | . . Fab Network Shutdowns . | . . Hacking | -11 -10 --------- Run | Scr Mat Machines Accessed . | . . Terminals . | . . Fabricators . | . . Repair Stations . | . . Recycling Units . | . . Scanalyzers . | . . Garrison Access . | . . Total Hacks . | . . Successful . | . . Failed . | . . Catastrophic . | . . Database Lockouts . | . . Manual . | . . Terminals . | . . Fabricators . | . . Repair Stations . | . . Recycling Units . | . . Scanalyzers . | . . Garrison Access . | . . Terminal Hacks . | . . Fabricator Hacks . | . . Repair Station Hacks . | . . Recycling Unit Hacks . | . . Scanalyzer . | . . Garrison Access Hacks . | . . Unauthorized Hacks . | . . Terminals . | . . Fabricators . | . . Repair Stations . | . . Recycling Units . | . . Scanalyzers . | . . Garrison Access . | . . Data Cores Recovered . | . . Used . | . . Hacking Detections . | . . Full Trace Events . | . . Feedback Events . | . . Feedback Blocked . | . . Robot Schematics Acquired . | . . Robots Built . | . . Matter . | . . Time . | . . Total Robot Build Rating . | . . Part Schematics Acquired . | . . Parts Built . | . . Matter . | . . Time . | . . Total Part Build Rating . | . . Parts Repaired . | . . Time . | . . Parts Recycled . | . . Recycled Matter . | . . Retrieved Matter . | . . Retrieved Components . | . . Parts Scanalyzed . | . . Part Schematics Acquired . | . . Parts Damaged . | . . Bothacking | -11 -10 ------------ Run | Scr Mat Used RIF Installer . | . . Robots Hacked . | . . Non-combat . | . . Combat . | . . Robot Hacks Applied . | . . Relay Couplers Released . | . . Robots Rewired . | . . Allies Hacked . | . . Hacks Repelled . | . . Allies | -11 -10 -------- Run | Scr Mat Total Allies . | . . Largest Group . | . . Highest-Rated Group . | . . Highest-Rated Ally . | . . Total Orders . | . . Ally Attacks . | . . Total Damage . | . . Kills . | . . Allies Corrupted . | . . Allies Melted . | . . Intel | -11 -10 ------- Run | Scr Mat Robot Analysis Total . | . . Derelict Logs Recovered . | . . Drone Launches . | . . Drone Recoveries . | . . Exploration | -11 -10 ------------- Run | Scr Mat Turns Passed 186 | 9 177 Spaces Moved 123 | 5 118 Core . | . . Treads . | . . Legs 6 | 3 3 Wheels 117 | 2 115 Hover . | . . Flight . | . . Fastest Speed 80 | 80 80 Average Speed 82 | 104 81 Slowest Speed 150 | 120 150 Overloaded Moves . | . . Propulsion Burnouts . | . . Robots Hopped . | . . Cave-ins Triggered . | . . Exploration Rate (%) 11 | 3 19 Regions Visited 1 Branch Regions . Pre-discovered Areas . | . . Known Exits Taken . | . . Unknown Exits Taken 1 | 1 . Scrap Searched . | . . Spaces Dug . | . . Terrain Destroyed . | . . Melee . | . . Projectile . | . . AOE . | . . Terrain Rammed . | . . Walls Destroyed . | . . Machines Disabled . | . . Actions | -11 -10 --------- Run | Scr Mat Total 163 | 10 153 Wait . | . . Move 122 | 4 118 Hop . | . . Pick Up 1 | . 1 Fast Attach 3 | . 3 Attach 5 | 2 3 Detach 4 | 2 2 Swap . | . . Drop 2 | 2 . Fire 14 | . 14 Melee 12 | . 12 Ram . | . . Kick . | . . Crush . | . . Escape Stasis . | . . Rewire . | . . Trap . | . . Miscellaneous . | . . Route ------- -11/Scrapyard -10/Materials History --------- Turn | Location | Event 1 | -11/Scrapyard | Discovered new exit (range 1) 10 | -11/Scrapyard | Entered Materials 161 | -10/Materials | Core integrity fell below 50% 175 | -10/Materials | Core integrity fell below 20% 187 | -10/Materials | Destroyed by G-34 Mercenary with Small Laser Last Messages --------------- 00134_ K-01 Serf collects debris. 00146_ Acquired Mace. 00149_ K-01 Serf collects debris. 00149_ Acquired Mace. 00150_ Mace follow-up attack on S-10 Pest. 00152_ Ion Engine destroyed. 00153_ Mace follow-up attack on S-10 Pest. 00153_ Destroyed Lgt. Ion Engine. 00153_ S-10 Pest system corrupted by crushing effect. 00154_ S-10 Pest system terminally corrupted. 00154_ Flight Unit fried. 00154_ K-01 Serf collects debris. 00158_ Wheel destroyed. 00168_ S-10 Pest destroyed. 00170_ U-05 Engineer destroyed. 00184_ Mace follow-up attack on G-34 Mercenary. 00184_ Destroyed Heat Sink. 00184_ G-34 Mercenary system corrupted by crushing effect. 00187_ Mace follow-up attack on G-34 Mercenary. 00187_ G-34 Mercenary destroyed. Map ----- +----------------------------------------------------+ | ????????????????????????????????????????? | | ????????????????????????????????????????? | | ????????????????????????????????????????? | | ????????????????????????????????????????? | | ????????????????????????????????????????? | | ????????????????????????????????????????? | | ????????????????????????????????????????? | | ????????????????????????????????????????? | | ????????????????????????????????????????? | | ????????????????????????????????????????? | | ????????????????????????????????????????? | | ?????????????????????""?????????????????? | | ????????????????????""??????????????????? | | ??????????????????? ??????????????????? | | ??????????????????? ??????????????????? | | ??????????????????? #??????????????????? | | ??????????????????? #??????????????????? | | ??????????????????? #??????????????????? | | ??????????????????? #??????????????????? | | ??????????????????? #??????????????????? | | ??????????????????# #??????????? ??? | | ??????????????##### #??????????# ?? | | ??????????????#/ s*#??????????# #?? | | ??????????????# /%*%g#??????????# #?? | | ??????????????#!! %==########???# #?? | | ??????????????#!@ g/ ## #?? | | ??????????????#||% # ## #?? | | ??????????????#|| # """ """ ## #?? | | ?????????########## # """ """ ## #?? | | ?????????# ! # # """ """ ## #?? | | ?????????# # # ## #?? | | ?????????# """ # # ??# #?? | | ?????????# """"" # #? ????# ### | | ?????????# """"" # ####+####### | | ?????????# """"" # | | ?????????# """ # #??? | | ?????????# #/// """ #??? | | ?????????# %= #/// """ ###??? | | ?????????####+#####/// """ #????? | | ??????????# ** #????? | | ??????????# ! #????? | | ???????######+##############+## #????? | | ???????# % #?# ######????? | | ???????# #?# """ #?????????? | | ???????# #?# "Y" #?????????? | | ???????# #?# ! #?????????? | | ???????# #?# * #?????????? | | ???????##############?#########?????????? | | | | | +----------------------------------------------------+ Best States ------------- Heat Dissipation 25 Energy Generation 10 Energy Capacity 250 Matter Stores 300 Matter Capacity 300 Sight Range 16 Terrain Scan Density 10 Evasion (%) 44 Item Schematics ----------------- None Robot Schematics ------------------ None Fabricated ------------ Nothing Alien Tech Used ----------------- None Achievements -------------- None Challenges ------------ None Game ------ Seed UltimateDataBox Manual? 0 Play Time 00:03:09 Cumulative 31.6 hours Start 2020.09.27 @ 22:16:27 End 2020.09.27 @ 22:18:06 Sessions 1 Manual Loads 0 Difficulty Rogue Special Mode None Game No. 63 Rogue 63 Adventurer 0 Explorer 0 Win Type - Total 0 Types 0/0/0/0/0/0/0/0/0 Lore% 23 Gallery% 37 Achievement% 26 Wizard Run 0 Options --------- ASCII 1 Keyboard 1 Movement Vi Keybinds 0 Fullscreen 2 Font 24/Terminus Map View 76x50 Tactical HUD 1 Map Filters SATURATION(70) Filters SATURATION(65)|SHIFT_HUE(14) Steam 1 RUN: 52c0b561-9587-4734-abc9-1729e1298d32